Workbook

Sheet Superpesis
B1: Sini Siekkinen | E1: 5.1.1987
B2: SUPERPESIS | E2: Runkosarja | I2: Kärkilyönnit (KL), pesänvälit | P2: Ylempi loppusarja | U2: Alempi loppusarja | Z2: Arvo-ottelut ja mitalit | AF2: Runkosarjan jälkeen
B3: Vuosi | C3: Sija | D3: Seura | E3: OTT | F3: KUN | G3: LÖI | H3: TOI | I3: KL | J3: 0 > 1 | K3: 1 > 2 | L3: 2 > 3 | M3: 3 > k | N3: KL-% | P3: OTT | Q3: KUN | R3: LÖI | S3: TOI | T3: KL | U3: OTT | V3: KUN | W3: LÖI | X3: TOI | Y3: KL | Z3: IL | AA3: LL | AB3: Halli | AC3: K | AD3: H | AE3: P
B4: 2005 | D4: Kirittäret 2 | F4: suomensarja
B5: 2006 | D5: Kirittäret 2 | F5: suomensarja
B6: 2007 | D6: Kirittäret 2 | F6: ykköspesis
B7: 2008 | D7: Kirittäret 2 | F7: ykköspesis
B8: 2008 | C8: 1. | D8: Kirittäret | E8: 3 | F8: 0 | G8: 0 | H8: 0 | I8: 4 | J8: 2 | K8: 2 | L8: 0 | M8: 0 | N8: 50.0 % | O8: 8
B9: 2009 | D9: Valo | F9: ykköspesis
B10: 2010 | C10: 12. | D10: Valo | E10: 24 | F10: 0 | G10: 4 | H10: 7 | I10: 56 | J10: 34 | K10: 15 | L10: 3 | M10: 4 | N10: 46.7 % | O10: 120 | U10: 6 | V10: 0 | W10: 0 | X10: 1 | Y10: 9 | AF10: alemmat pudotuspelit
B11: Yhteensä | E11: =SUM(E4:E10) -> 27 | F11: 0 | G11: 4 | H11: 7 | I11: 60 | J11: 36 | K11: 17 | L11: 3 | M11: 4 | N11: 46.9 % | O11: =SUM(O4:O10) -> 128 | P11: 0 | Q11: 0 | R11: 0 | S11: 0 | T11: 0 | U11: 6 | V11: 0 | W11: 0 | X11: 1 | Y11: 9 | Z11: 0 | AA11: 0 | AB11: 0 | AC11: 0 | AD11: 0 | AE11: 0
B12: Pesispörssi | D12: =SUM(F11:H11)+((I11-F11-G11)/3)+(E11/3)+(Z11*25)+(AA11*25)+(AB11*10)+(AC11*25)+(AD11*20)+(AE11*15) -> 38.7
B14: URA SUPERISSA | E14: OTT | F14: KUN | G14: LÖI | H14: TOI | I14: KL | K14: ka/L | L14: ka/T | M14: ka/KL | N14: K - % | P14: ENSIMMÄISET
B15: Runkosarja | E15: =PRODUCT(E11) -> 27 | F15: =PRODUCT(F11) -> 0 | G15: =PRODUCT(G11) -> 4 | H15: =PRODUCT(H11) -> 7 | I15: =PRODUCT(I11) -> 60 | K15: =PRODUCT((F15+G15)/E15) -> 0.15 | L15: =PRODUCT(H15/E15) -> 0.26 | M15: =PRODUCT(I15/E15) -> 2.22 | N15: =PRODUCT(N11) -> 46.9 % | O15: =PRODUCT(O11) -> 128 | P15: Ottelu | S15: 25.05. 2008 Virkiä - Kirittäret 0-2 (0-2, 2-4) | AD15: 1. ottelu | AF15: 21 v 4 kk 20 pv
B16: Ylempi loppusarja | P16: Lyöty juoksu | S16: 15.05. 2010 ViU - Valo 2-1 (12-8, 3-4, 2-0) | AD16: 5. ottelu | AF16: 23 v 4 kk 10 pv
B17: Alempi loppusarja | E17: =PRODUCT(U11) -> 6 | F17: =PRODUCT(V11) -> 0 | G17: =PRODUCT(W11) -> 0 | H17: =PRODUCT(X11) -> 1 | I17: =PRODUCT(Y11) -> 9 | K17: =PRODUCT((F17+G17)/E17) -> 0.00 | L17: =PRODUCT(H17/E17) -> 0.17 | M17: =PRODUCT(I17/E17) -> 1.50 | N17: 34.6 % | O17: 26 | P17: Tuotu juoksu | S17: 12.05. 2010 Valo - YPJ 0-1 (1-1, 4-4, 0-1) | AD17: 4. ottelu | AF17: 23 v 4 kk 7 pv
B18: KAIKKI | E18: =SUM(E15:E17) -> 33 | F18: =SUM(F15:F17) -> 0 | G18: =SUM(G15:G17) -> 4 | H18: =SUM(H15:H17) -> 8 | I18: =SUM(I15:I17) -> 69 | K18: =PRODUCT((F18+G18)/E18) -> 0.12 | L18: =PRODUCT(H18/E18) -> 0.24 | M18: =PRODUCT(I18/E18) -> 2.09 | N18: =PRODUCT(I18/O18) -> 44.8 % | O18: =SUM(O15:O17) -> 154 | P18: Kunnari
B20: Seurat | D20: Kiri = Jyväskylän Kiri (1930), kasvattajaseura
D21: Kirittäret = Jyväskylän Kirittäret (2004)
D22: Valo = Jyväskylän Valo (1948)

Sheet Arvo-ottelut
B1: ITÄ - LÄNSI - KORTTI
B2: Sini Siekkinen | C2: 5.1.1987
B3: B-TYTÖT | C3: Itä - Länsi, tulos | D3: Joukkue | E3: Seura | G3: V | H3: T | I3: H | J3: Up. | K3: Lj. | L3: Palk. | M3: O | N3: K | O3: L | P3: T | Q3: KL | R3: 1 | S3: 2 | T3: 3 | U3: k | V3: KL-% | W3: Pelinjohtaja | X3: Yleisöä
B4: 02.07. 2006 Kitee | C4: 0-2 (1-7, 2-5) | D4: Itä | E4: Kirittäret | I4: 1 | K4: jok | M4: 1 | P4: 1 | Q4: 2/4 | R4: 2/3 | S4: 0/1 | V4: 50.0 % | W4: Ville Lantta | X4: 1839
